bitfinex-derivatives/quotes_SOLF0:USTF0_20250613
["timestamp","ask_amount","ask_price","bid_price","bid_amount"]
[1749806754288,0.04937452,144.48,144.45,0.04482906]
[1749806754993,0.04937452,144.48,144.45,6.96412906]
[1749806755887,6.96757452,144.48,144.46,6.9191]
[1749806756284,6.96757452,144.48,144.45,0.04482906]
[1749806756485,6.96757452,144.48,144.45,6.96422906]
[1749806756679,0.04937452,144.48,144.45,6.96422906]
[1749806756898,0.04937452,144.48,144.45,0.04482906]
[1749806757093,0.04937452,144.48,144.47,6.9186]
[1749806758094,0.04937452,144.48,144.46,44.2588]
[1749806759996,0.04937452,144.48,144.47,6.9186]
[1749806762297,6.9166,144.52,144.49,6.9175]
[1749806762508,39.6225,144.54,144.49,6.9175]
[1749806762691,6.916,144.53,144.49,6.9175]
[1749806763096,0.05160545,144.52,144.5,0.04684605]
[1749806763701,0.05160545,144.52,144.5,37.38684605]
[1749806764099,0.05160545,144.52,144.51,6.9167]
[1749806764502,0.05160545,144.52,144.5,37.38684605]
[1749806766099,0.05160545,144.52,144.5,44.30374605]
[1749806766405,0.05160545,144.52,144.5,52.9136496]
[1749806767203,0.05160545,144.52,144.51,5.02282075]
[1749806767611,0.05160545,144.52,144.51,11.93952075]
[1749806767802,0.05160545,144.52,144.51,5.02282075]
[1749806768911,6.96780545,144.52,144.51,5.02282075]
[1749806769208,0.05160545,144.52,144.51,5.02282075]
[1749806769404,0.05160545,144.52,144.5,0.04684605]
[1749806769608,6.9167,144.51,144.5,0.04684605]
[1749806771404,0.05160545,144.52,144.5,0.04684605]
[1749806771596,0.05160545,144.52,144.5,5.0696668]
[1749806771801,0.05160545,144.52,144.5,11.9864668]
[1749806771999,0.05160545,144.52,144.5,5.0696668]
[1749806772910,0.05160545,144.52,144.5,0.04684605]
[1749806773108,0.05160545,144.52,144.5,6.96354605]
[1749806773407,0.05160545,144.52,144.5,13.87754605]
[1749806775416,6.96780545,144.52,144.5,6.96084605]
[1749806775614,6.96780545,144.52,144.5,0.04684605]
[1749806775911,0.05160545,144.52,144.5,6.96084605]
[1749806776514,6.96800545,144.52,144.5,6.96084605]
[1749806776716,0.05160545,144.52,144.5,0.04684605]
[1749806777014,0.05160545,144.52,144.5,6.96374605]
[1749806777214,0.05160545,144.52,144.5,0.04684605]
[1749806777508,0.05160545,144.52,144.51,6.9167]
[1749806777712,0.05160545,144.52,144.5,0.04684605]
[1749806779210,6.9167,144.51,144.5,0.04684605]
[1749806781411,5.02780323,144.51,144.44,2.325]
[1749806781616,5.02780323,144.49,144.44,2.325]
[1749806781912,2.2183,144.51,144.44,2.325]
[1749806782114,37.34,144.52,144.45,5.02825634]
[1749806782313,37.34,144.52,144.47,0.05295999]
[1749806782511,0.04826653,144.5,144.47,0.05295999]
[1749806782905,6.96586653,144.5,144.47,0.05295999]
[1749806784217,6.9178,144.49,144.47,0.05295999]
[1749806784909,0.04826653,144.5,144.47,0.05295999]
[1749806784910,6.9181,144.48,144.47,0.05295999]
[1749806785610,6.9178,144.49,144.47,0.05295999]
[1749806785810,0.04826653,144.5,144.47,0.05295999]
[1749806786220,6.9181,144.48,144.47,0.05295999]
[1749806786923,6.9177,144.49,144.47,0.05295999]
[1749806787824,6.9181,144.48,144.47,0.05295999]
[1749806789615,6.9178,144.49,144.47,0.05295999]
[1749806790025,0.04826653,144.5,144.47,0.05295999]
[1749806790220,6.96566653,144.5,144.47,0.05295999]
[1749806790424,0.04826653,144.5,144.47,5.08121633]
[1749806791623,0.04826653,144.5,144.47,0.05295999]
[1749806791825,0.04826653,144.5,144.48,6.9181]
[1749806792127,0.04826653,144.5,144.49,5.02825634]
[1749806792322,0.04826653,144.5,144.48,11.94635634]
[1749806792520,0.04826653,144.5,144.49,6.9176]
[1749806792719,0.04826653,144.5,144.48,5.02825634]
[1749806793019,0.04826653,144.5,144.48,11.94595634]
[1749806793529,0.04826653,144.5,144.48,5.02825634]
[1749806793727,0.04826653,144.5,144.49,6.9176]
[1749806798129,0.04826653,144.5,144.48,11.94615634]
[1749806798921,0.04826653,144.5,144.49,5.02825634]
[1749806800224,0.04826653,144.5,144.49,11.94585634]
[1749806800526,45.54655634,144.56,144.49,11.94585634]
[1749806800527,2.2183,144.56,144.49,5.02825634]
[1749806800726,2.2183,144.56,144.52,5.02825634]
[1749806800921,6.9149,144.55,144.52,5.02825634]
[1749806801321,6.96065197,144.55,144.52,5.07977694]
[1749806802328,0.04575197,144.55,144.52,11.99587694]
[1749806802518,0.04575197,144.55,144.52,5.07977694]
[1749806803231,0.04575197,144.55,144.53,6.9154]
[1749806804526,0.04575197,144.55,144.54,5.02825634]
[1749806804927,0.04575197,144.55,144.53,6.9154]
[1749806805127,0.04575197,144.55,144.54,5.02825634]
[1749806805732,0.04575197,144.55,144.54,11.94345634]
[1749806806128,2.3736,144.6,144.54,5.02825634]
[1749806806326,6.9131,144.59,144.56,5.02825634]
[1749806806729,2.3736,144.6,144.56,5.02825634]
[1749806806931,9.2862,144.6,144.56,11.94225634]
[1749806807227,0.04499042,144.59,144.57,0.04627876]
[1749806807435,0.04499042,144.59,144.58,5.02825634]
[1749806808136,0.04499042,144.59,144.58,11.94155634]
[1749806809228,235.33638826,144.63,144.59,6.9125]
[1749806809430,235.33638826,144.63,144.6,5.02825634]
[1749806810229,6.96129299,144.63,144.6,5.07539425]
[1749806810535,0.05009299,144.63,144.6,0.04713791]
[1749806810831,6.9119,144.61,144.6,0.04713791]
[1749806811029,0.05009299,144.63,144.6,0.04713791]
[1749806811637,6.9117,144.62,144.6,0.04713791]
[1749806811829,0.05009299,144.63,144.6,0.04713791]
[1749806812336,6.9115,144.62,144.6,0.04713791]
[1749806815640,6.96129299,144.63,144.6,0.04713791]
[1749806815936,0.05009299,144.63,144.6,0.04713791]
[1749806816235,0.05009299,144.63,144.6,6.95913791]
[1749806816838,6.96109299,144.63,144.6,6.95913791]
[1749806817236,6.96109299,144.63,144.6,0.04713791]
[1749806817540,0.05009299,144.63,144.6,0.04713791]
[1749806817742,5.02825634,144.71,144.61,5.02825634]
[1749806818036,9.215,144.73,144.68,5.02825634]
[1749806818241,42.3177,144.77,144.7,5.02825634]
[1749806818436,4.7177,144.77,144.72,5.02825634]
[1749806818838,0.05297713,144.76,144.73,0.04375583]
[1749806819842,6.9052,144.75,144.73,0.04375583]
[1749806820044,0.05297713,144.76,144.73,0.04375583]
[1749806820239,6.95797713,144.76,144.73,0.04375583]
[1749806820639,0.05297713,144.76,144.73,0.04375583]
[1749806820945,6.95767713,144.76,144.73,0.04375583]
[1749806821846,6.95767713,144.76,144.73,5.07201217]
[1749806822050,2.3085,144.8,144.75,5.02825634]
[1749806822342,37.58,144.82,144.77,5.02825634]
[1749806822537,5.02825634,144.82,144.75,5.02825634]
[1749806823144,6.94874125,144.8,144.77,0.049843]
[1749806823449,0.04564125,144.8,144.77,0.049843]
[1749806824038,6.94884125,144.8,144.77,0.049843]
[1749806824739,0.04564125,144.8,144.77,5.07809934]
[1749806825140,0.04564125,144.8,144.79,5.02825634]
[1749806825345,2.3417,144.83,144.79,5.02825634]
[1749806825740,2.3417,144.83,144.79,11.93115634]
[1749806826151,2.3417,144.83,144.79,5.02825634]
[1749806826445,0.04519001,144.82,144.8,6.9027]
[1749806826644,0.04519001,144.82,144.8,6.95202402]
[1749806826843,0.04519001,144.82,144.81,5.02825634]
[1749806827746,0.04519001,144.82,144.8,0.04932402]
[1749806827944,270.94835683,144.81,144.64,41.6]
[1749806828145,270.94835683,144.81,144.68,5.00751132]
[1749806828351,5.00751132,144.75,144.66,48.5093]
[1749806828548,5.00751132,144.75,144.67,5.00751132]
[1749806828549,2.171,144.74,144.67,5.00751132]
[1749806828951,0.05060465,144.72,144.69,0.05095335]
[1749806829653,6.9076,144.7,144.69,0.05095335]
[1749806831460,6.9073,144.71,144.69,0.05095335]
[1749806831657,0.05060465,144.72,144.69,0.05095335]
[1749806832157,6.9076,144.7,144.69,0.05095335]
[1749806835447,0.05060465,144.72,144.69,0.05095335]
[1749806835647,0.05060465,144.72,144.69,8.64256399]
[1749806835853,0.05060465,144.72,144.7,41.6]
[1749806837951,6.95720465,144.72,144.7,41.6]
[1749806838147,0.05060465,144.72,144.7,41.6]
[1749806838354,0.05060465,144.72,144.69,8.64256399]
[1749806838355,0.05060465,144.72,144.69,0.05095335]
[1749806838554,6.9072,144.71,144.69,0.05095335]
[1749806838763,0.05060465,144.72,144.69,0.05095335]
[1749806839156,6.9076,144.7,144.69,0.05095335]
[1749806839362,406.21179712,144.7,144.35,54.40914029]
[1749806839562,6.9154,144.54,144.43,2.3418]
[1749806839761,6.9154,144.54,144.46,15.513727]
[1749806839957,6.9154,144.54,144.46,8.595127]
[1749806840263,0.05204997,144.51,144.49,0.05160454]
[1749806840563,0.05132179,144.51,144.49,0.04717478]
[1749806843566,0.05132179,144.51,144.49,6.96477478]
[1749806843760,0.05132179,144.51,144.49,8.64230178]
[1749806844158,0.05132179,144.51,144.49,15.55990178]
[1749806845457,0.05132179,144.51,144.5,6.9171]
[1749806847871,2.2913,144.56,144.52,6.9161]
[1749806848468,2.2913,144.56,144.51,13.8385]
[1749806848869,0.05245527,144.55,144.52,0.046105]
[1749806851258,6.96725527,144.55,144.52,0.046105]
[1749806853162,6.9157,144.53,144.52,0.046105]
[1749806854570,6.9152,144.54,144.52,0.046105]
[1749806859377,6.9157,144.53,144.52,0.046105]
[1749806860870,6.9154,144.54,144.52,0.046105]
[1749806862081,6.96745527,144.55,144.52,0.046105]
[1749806862277,0.05245527,144.55,144.52,0.046105]
[1749806863077,6.96745527,144.55,144.52,0.046105]
[1749806863278,0.05245527,144.55,144.52,0.046105]
[1749806864175,6.96745527,144.55,144.52,0.046105]
[1749806864978,0.05245527,144.55,144.52,0.046105]
[1749806865773,6.96725527,144.55,144.52,0.046105]
[1749806866072,0.05245527,144.55,144.52,6.962105]
[1749806866277,0.05245527,144.55,144.52,0.046105]
[1749806866479,0.05245527,144.55,144.52,40.846105]
[1749806866685,0.05245527,144.55,144.52,47.762105]
[1749806867179,0.05245527,144.55,144.52,40.846105]
[1749806867683,0.05245527,144.55,144.53,6.9157]
[1749806868975,0.05245527,144.55,144.54,6.9152]
[1749806869382,0.05245527,144.55,144.53,5.02076027]
[1749806869580,4.6676,144.61,144.53,5.02076027]
[1749806869884,5.02076027,144.64,144.56,5.02076027]
[1749806870069,5.02076027,144.64,144.56,45.82076027]
[1749806870270,6.9126,144.6,144.56,52.73476027]
[1749806870478,5.02076027,144.64,144.56,45.82076027]
[1749806870679,0.04676008,144.59,144.57,0.04919794]
[1749806870976,0.04676008,144.59,144.57,6.96269794]
[1749806872578,0.04676008,144.59,144.58,6.9133]
[1749806877088,45.3883,144.65,144.58,8.60223608]
[1749806877380,9.1886,144.65,144.58,8.60223608]
[1749806877588,2.2784,144.65,144.61,6.9116]
[1749806877988,0.05002649,144.64,144.62,0.04586606]
[1749806878389,0.05002649,144.64,144.62,6.95726606]
[1749806878780,6.9097,144.66,144.62,0.04586606]
[1749806878989,8.59315971,144.72,144.64,8.59315971]
[1749806879189,8.59315971,144.72,144.64,49.37315971]
[1749806879483,2.2547,144.74,144.66,8.59315971]
[1749806879685,5.53430337,144.73,144.66,8.59315971]
[1749806879887,6.95887991,144.71,144.68,0.05288672]
[1749806880290,0.05137991,144.71,144.68,0.05288672]
[1749806880485,0.05137991,144.71,144.68,8.64604643]
[1749806880789,0.05137991,144.71,144.68,15.55424643]
[1749806881293,8.25064262,144.7,144.68,15.55424643]
[1749806881486,8.25064262,144.69,144.68,15.55424643]
[1749806881685,0.05137991,144.71,144.68,15.55424643]
[1749806881886,0.05137991,144.71,144.69,6.908]
[1749806882491,0.05137991,144.71,144.68,6.96138672]
[1749806882796,0.05137991,144.71,144.68,0.05288672]
[1749806882990,0.05137991,144.71,144.69,6.908]
[1749806884095,0.05137991,144.71,144.68,0.05288672]
[1749806884298,0.05137991,144.71,144.68,40.83288672]
[1749806884687,0.05137991,144.71,144.69,6.9078]
[1749806885692,0.05137991,144.71,144.7,6.9076]
[1749806886498,11.5659,144.76,144.72,6.9066]
[1749806887495,0.04408247,144.75,144.73,0.0460945]
[1749806887697,6.94938247,144.75,144.73,0.0460945]
[1749806888088,0.04408247,144.75,144.73,0.0460945]
[1749806888698,0.04408247,144.75,144.73,8.63925421]
[1749806889192,0.04408247,144.75,144.74,6.9057]
[1749806889506,0.04408247,144.75,144.73,8.63925421]
[1749806890104,0.04408247,144.75,144.74,6.9057]
[1749806892202,0.04408247,144.75,144.73,15.54525421]
[1749806892403,0.04408247,144.75,144.73,8.63925421]
[1749806893106,0.04408247,144.75,144.74,6.9057]
[1749806893304,0.04408247,144.75,144.74,11.91258974]
[1749806893706,0.04408247,144.75,144.74,5.00688974]
[1749806894107,9.2026,144.79,144.75,6.9047]
[1749806895214,0.04467404,144.78,144.76,0.05069877]
[1749806895412,6.94847404,144.78,144.76,0.05069877]
[1749806895818,0.04467404,144.78,144.76,0.05069877]
[1749806896419,0.04467404,144.78,144.77,6.9042]
[1749806896722,0.04467404,144.78,144.77,11.91108974]
[1749806899215,6.9021,144.82,144.78,6.9034]
[1749806899414,6.9016,144.83,144.79,5.00688974]
[1749806899618,6.9016,144.83,144.79,11.90998974]
[1749806899921,11.67718974,144.86,144.79,5.00688974]
[1749806900110,0.049104,144.84,144.81,0.0439799]
[1749806900517,6.9019,144.82,144.81,0.0439799]
[1749806900920,6.904,144.78,144.75,39.38]
[1749806901623,6.9036,144.79,144.75,46.2851]
[1749806901817,0.05189028,144.78,144.76,0.04620165]
[1749806902725,0.05189028,144.78,144.76,6.95080165]
[1749806903016,0.05189028,144.78,144.76,5.05309139]
[1749806903418,0.05189028,144.78,144.77,6.9043]
[1749806904413,6.6703,144.86,144.76,16.98198113]
[1749806904616,46.0503,144.86,144.8,5.00688974]
[1749806905126,46.0503,144.86,144.8,11.90958974]
[1749806905326,0.04828973,144.84,144.82,0.0461479]
[1749806905524,6.9017,144.83,144.82,0.0461479]
[1749806908128,6.94938973,144.84,144.82,0.0461479]
[1749806908434,0.04828973,144.84,144.82,0.0461479]
[1749806908732,6.94928973,144.84,144.82,0.0461479]
[1749806909927,6.9014,144.83,144.82,0.0461479]
[1749806911427,6.94958973,144.84,144.82,0.0461479]
[1749806911629,0.04828973,144.84,144.82,0.0461479]
[1749806912028,0.04828973,144.84,144.79,39.38]
[1749806912231,0.04828973,144.84,144.77,5.00688974]
[1749806912733,0.04828973,144.84,144.78,6.9034]
[1749806912934,5.00688974,144.83,144.77,5.00688974]
[1749806913137,0.04524359,144.81,144.8,6.9028]
[1749806913328,3.2051995,144.81,144.8,6.9028]
[1749806913633,3.2051995,144.81,144.79,0.0529613]
[1749806913827,3.2051995,144.8,144.79,13.8779613]
[1749806914029,3.2051995,144.8,144.79,6.9749613]
[1749806914229,3.20518117,144.8,144.79,6.9749613]
[1749806914439,0.04774762,144.82,144.79,6.9749613]
[1749806914921,0.04774762,144.82,144.81,6.9023]
[1749806915123,3.08040699,144.82,144.81,6.9023]
[1749806915533,0.04774762,144.82,144.81,6.9023]
[1749806931353,2.1917,144.86,144.81,5.00688974]
[1749806931645,5.63874889,144.85,144.82,5.0028304]
[1749806931852,2.1917,144.86,144.82,5.0028304]
[1749806932441,0.04548367,144.85,144.83,0.05262036]
[1749806934443,6.94628367,144.85,144.83,0.05262036]
[1749806937747,0.04548367,144.85,144.83,0.05262036]
[1749806938351,6.94618367,144.85,144.83,0.05262036]
[1749806940058,6.9009,144.84,144.83,0.05262036]
[1749806940258,12.5651856,144.84,144.83,0.05262036]
[1749806940955,6.9009,144.84,144.83,0.05262036]
[1749806941257,0.04548367,144.85,144.84,6.9009]
[1749806941452,0.04548367,144.85,144.84,11.90472342]
[1749806942052,0.04548367,144.85,144.84,50.36472342]
[1749806942258,0.04548367,144.85,144.84,50.36053788]
[1749806942458,0.04548367,144.85,144.84,43.45963788]
[1749806942850,5.67048724,144.88,144.84,43.45963788]
[1749806943055,2.2815,144.92,144.84,43.45963788]
[1749806943056,2.2815,144.92,144.86,4.99963788]
[1749806943256,5.67197348,144.91,144.86,4.99963788]
[1749806943452,2.2815,144.92,144.86,4.99963788]
[1749806943657,6.8982,144.9,144.87,6.8993]
[1749806943857,0.05208047,144.9,144.87,0.04959308]
[1749806944455,5.66820895,144.89,144.87,0.04959308]
[1749806944656,6.899,144.88,144.87,0.04959308]
[1749806945156,15.4072666,144.88,144.87,0.04959308]
[1749806945356,12.56698221,144.88,144.87,0.04959308]
[1749806945556,15.4072637,144.88,144.87,0.04959308]
[1749806945757,12.56698221,144.88,144.87,0.04959308]
[1749806945953,15.40726368,144.88,144.87,0.04959308]
[1749806946257,15.40724324,144.88,144.87,0.04959308]
[1749806946854,15.40721064,144.88,144.87,0.04959308]
[1749806948365,15.40729007,144.88,144.87,0.04959308]
[1749806948761,15.40721974,144.88,144.87,0.04959308]
[1749806949462,15.4072177,144.88,144.87,0.04959308]
[1749806949667,15.40727045,144.88,144.87,0.04959308]
[1749806949863,12.56698221,144.88,144.87,0.04959308]
[1749806951973,17.56662009,144.88,144.87,0.04959308]
[1749806952266,20.41016071,144.88,144.87,0.04959308]
[1749806952469,15.41052283,144.88,144.87,0.04959308]
[1749806952668,5.66798221,144.88,144.87,0.04959308]
[1749806952968,0.05208047,144.9,144.87,0.04959308]
[1749806953163,5.67156045,144.89,144.87,0.04959308]
[1749806953364,0.05208047,144.9,144.87,0.04959308]
[1749806953863,5.66781667,144.89,144.87,0.04959308]
[1749806954070,0.05208047,144.9,144.87,0.04959308]
[1749806954271,6.899,144.88,144.87,0.04959308]
[1749806957664,0.05208047,144.9,144.87,0.04959308]
[1749806957866,0.05208047,144.9,144.88,42.59963788]
[1749806958365,0.05208047,144.9,144.88,49.52163788]
[1749806958571,0.05208047,144.9,144.88,56.42033788]
[1749806959880,7.28533788,144.96,144.89,6.8985]
[1749806960074,8.48887334,144.95,144.9,4.99963788]
[1749806960370,6.8969,144.93,144.9,4.99963788]
[1749806960970,6.8969,144.93,144.9,5.04650203]
[1749806962066,8.79604494,144.99,144.9,5.04650203]
[1749806962067,8.79604494,144.99,144.92,4.99963788]
[1749806962366,8.48700783,144.98,144.95,4.99963788]
[1749806962566,5.64434504,144.97,144.95,4.99963788]
[1749806962770,6.894,144.99,144.95,4.99963788]
[1749806962771,6.894,144.99,144.95,11.92163788]
[1749806962974,6.8937,145.0,144.95,18.81723788]
[1749806963170,2.2635,145.01,144.95,11.92163788]
[1749806963469,6.8938,145.0,144.95,11.89503788]
[1749806963868,2.2635,145.01,144.95,4.99963788]
[1749806964064,2.84342841,145.0,144.97,4.99963788]
[1749806964269,2.2635,145.01,144.97,5.0468845]
[1749806964468,2.84344491,145.0,144.97,5.0468845]
[1749806964670,2.2635,145.01,144.97,5.0468845]
[1749806965072,2.84346857,145.0,144.97,5.0468845]
[1749806965377,6.8933,145.0,144.97,5.0468845]
[1749806965579,2.2635,145.01,144.97,42.6268845]
[1749806965978,6.8933,145.0,144.97,42.6268845]
[1749806966167,2.2635,145.01,144.97,42.6268845]
[1749806966367,9.1566,145.01,144.97,49.5213845]
[1749806966677,39.8088,145.04,144.97,42.6268845]
[1749806966876,8.50326625,145.03,144.97,42.6268845]
[1749806967072,2.4032,145.06,145.01,4.99963788]
[1749806967273,8.50428087,145.05,145.02,0.04762849]
[1749806967578,6.8919,145.03,145.02,0.04762849]
[1749806968768,6.8916,145.04,145.02,0.04762849]
[1749806969373,2.4049,145.08,145.02,5.04726637]
[1749806969574,5.67454998,145.07,145.02,5.04726637]
[1749806969771,2.4049,145.08,145.02,5.04726637]
[1749806969972,6.8902,145.07,145.03,6.8918]
[1749806970371,2.4049,145.08,145.03,6.8918]
[1749806970784,6.8908,145.06,145.02,11.93956637]
[1749806972374,6.8917,145.04,145.02,0.04762849]
[1749806972881,2.4049,145.08,145.02,0.04762849]
[1749806973083,6.891,145.05,145.02,0.04762849]
[1749806973286,2.4049,145.08,145.02,0.04762849]
[1749806973585,6.8908,145.06,145.02,13.86172849]
[1749806973978,2.4049,145.08,145.02,6.96962849]
[1749806974179,6.8912,145.05,145.02,6.96962849]
[1749806974582,2.4049,145.08,145.02,6.96962849]
[1749806975275,4.99963788,145.07,145.02,6.96962849]
[1749806975483,4.99963788,145.05,145.02,6.96962849]
[1749806975785,6.8919,145.03,145.02,6.96962849]
[1749806976173,6.8919,145.03,145.02,0.04762849]
[1749806977376,6.8938,144.99,144.98,37.56]
[1749806977577,4.99963788,145.03,144.98,37.56]
[1749806977978,4.99963788,145.01,144.95,2.3913]
[1749806978179,4.99963788,144.99,144.95,37.56]
[1749806978382,0.04641035,144.98,144.96,0.04410492]
[1749806978686,6.895,144.97,144.96,0.04410492]
[1749806983994,6.8966,144.93,144.92,37.56]
[1749806987397,6.94839883,144.94,144.92,37.56]
[1749806987706,0.05199883,144.94,144.92,37.56]
[1749806987900,6.8966,144.93,144.92,37.56]
[1749806990004,6.94839883,144.94,144.92,37.56]
[1749806990602,0.05199883,144.94,144.92,42.55963788]
[1749806990805,0.05199883,144.94,144.92,49.45643788]
[1749806991395,0.05199883,144.94,144.92,42.55963788]
[1749806992607,0.05199883,144.94,144.93,6.8966]
[1749806994701,0.05199883,144.94,144.92,49.45653788]
[1749806995202,0.05199883,144.94,144.93,6.8966]
[1749806995897,0.05199883,144.94,144.92,49.45653788]
[1749806996207,0.05199883,144.94,144.92,37.56]
[1749806997600,0.05199883,144.94,144.92,44.457]
[1749806998606,0.05199883,144.94,144.92,49.45663788]
[1749806999700,0.05199883,144.94,144.92,37.56]
[1749807000305,0.05199883,144.94,144.92,44.457]
[1749807000607,0.05199883,144.94,144.92,37.56]
[1749807000798,6.8971,144.92,144.91,0.04928275]
[1749807001508,4.99963788,144.92,144.86,434.64]
[1749807001709,4.99963788,144.9,144.86,37.56]
[1749807001908,4.99963788,144.88,144.83,44.4812]
[1749807002207,4.99963788,144.88,144.82,37.58]
[1749807002409,4.99963788,144.9,144.83,4.99963788]
[1749807002602,0.0473994,144.88,144.85,0.0488548]
[1749807002797,0.0473994,144.88,144.87,6.8995]
[1749807003005,0.0473994,144.88,144.87,11.89913788]
[1749807003601,0.0473994,144.88,144.87,6.8995]
[1749807003800,0.0473994,144.88,144.86,37.58]
[1749807003801,0.0473994,144.88,144.86,44.4797]
[1749807004006,0.0473994,144.88,144.85,0.0488548]
[1749807004316,6.8995,144.87,144.85,0.0488548]
[1749807004606,5.04703728,144.88,144.85,0.0488548]
[1749807006102,4.99963788,144.86,144.83,37.58]
[1749807006309,4.99963788,144.84,144.8,44.502]
[1749807006811,7.0137,144.87,144.81,4.99963788]
[1749807007108,6.9009,144.85,144.83,0.04507968]
[1749807007302,4.99963788,144.84,144.83,0.04507968]
[1749807007606,4.99963788,144.84,144.77,42.57963788]
[1749807007807,6.9022,144.82,144.79,6.9031]
[1749807008207,4.99963788,144.82,144.77,37.58]
[1749807008608,0.04924116,144.81,144.78,0.04906162]
[1749807009010,0.04924116,144.81,144.78,6.95246162]
[1749807009513,6.95184116,144.81,144.78,6.95246162]
[1749807009710,0.04924116,144.81,144.78,0.04906162]
[1749807010817,6.9031,144.8,144.78,0.04906162]
[1749807012217,4.99963788,144.8,144.74,37.56]
[1749807012510,6.9049,144.76,144.7,37.56]
[1749807012711,4.99963788,144.78,144.7,42.55963788]
[1749807012906,4.6255,144.8,144.7,42.55963788]
[1749807013210,6.9044,144.77,144.72,4.99963788]
[1749807013413,9.62513788,144.8,144.72,4.99963788]
[1749807013414,0.04652452,144.76,144.74,0.04679583]
[1749807013613,2.452e-05,144.76,144.75,37.56]
[1749807013915,7.28003788,144.87,144.75,188.64437576]
[1749807014217,4.99963788,144.85,144.76,4.99963788]
[1749807014415,4.99963788,144.85,144.78,6.9037]
[1749807014614,42.57963788,144.85,144.78,6.9037]
[1749807014807,6.9026,144.81,144.8,0.05296774]
[1749807015008,0.05284435,144.83,144.8,0.05296774]
[1749807016809,6.9022,144.82,144.8,0.05296774]
[1749807017210,6.9022,144.82,144.8,6.95576774]
[1749807017714,0.05284435,144.83,144.8,8.63020382]
[1749807018011,2.2804,144.87,144.82,8.57723608]
[1749807018418,2.2804,144.87,144.83,6.9011]
[1749807018619,6.8998,144.87,144.82,15.49923608]
[1749807018918,0.04872356,144.86,144.83,0.04850282]
[1749807019125,6.94892356,144.86,144.83,6.94960282]
[1749807019819,0.04872356,144.86,144.84,6.9009]
[1749807020114,0.04872356,144.86,144.84,8.57723608]
[1749807020319,0.04872356,144.86,144.85,6.9004]
[1749807020817,6.8973,144.92,144.88,6.8987]
[1749807021022,2.2673,144.96,144.91,8.57723608]
[1749807021519,2.2673,144.96,144.88,53.07923608]
[1749807021718,0.04592157,144.93,144.91,0.04619456]
[1749807022018,6.8971,144.92,144.91,0.04619456]
[1749807022416,6.8971,144.92,144.91,9.456e-05]
[1749807022619,15.47433608,144.92,144.91,9.456e-05]
[1749807024115,6.8971,144.92,144.91,9.456e-05]
[1749807027425,15.47433608,144.92,144.91,9.456e-05]
[1749807028927,6.8971,144.92,144.91,9.456e-05]
[1749807030321,15.47433608,144.92,144.91,9.456e-05]
[1749807032420,17.87173608,144.92,144.91,9.456e-05]
[1749807032621,6.9,144.86,144.85,37.58]
[1749807032919,10.84903608,144.91,144.85,37.58]
[1749807033126,8.57723608,144.91,144.85,37.58]
[1749807033328,2.3974,144.92,144.85,53.07923608]
[1749807033527,8.57723608,144.94,144.85,53.07923608]
[1749807033828,0.05064171,144.91,144.88,6.968103]
[1749807034426,6.8985,144.89,144.88,6.968103]
[1749807034924,6.8985,144.89,144.88,0.046103]
[1749807035324,6.8982,144.9,144.88,0.046103]
[1749807035526,0.05064171,144.91,144.88,0.046103]
[1749807036430,0.05064171,144.91,144.89,6.8985]
[1749807036619,0.05064171,144.91,144.89,44.4585]
[1749807037029,0.05064171,144.91,144.89,37.56]
[1749807037925,8.57723608,144.98,144.89,59.95743608]
[1749807038223,8.57723608,144.96,144.89,44.482]
[1749807038424,8.57723608,144.96,144.89,37.56]
[1749807038626,6.897,144.93,144.9,6.898]
[1749807039129,6.94672039,144.93,144.9,6.9430281]
[1749807039423,0.04972039,144.93,144.91,6.8975]
[1749807040323,0.04972039,144.93,144.92,6.8971]
[1749807040823,0.04972039,144.93,144.91,6.8974]
[1749807041133,0.04972039,144.93,144.9,8.62226418]
[1749807041522,0.04972039,144.93,144.92,6.8971]
[1749807042328,0.04972039,144.93,144.91,6.8974]
[1749807042626,0.04972039,144.93,144.9,8.62226418]
[1749807042830,37.56,144.99,144.9,13.23486418]
[1749807043033,48.47243608,145.02,144.92,8.57723608]
[1749807043231,48.47243608,145.02,144.93,37.54]
[1749807043432,48.47243608,145.02,144.95,6.8954]
[1749807043627,39.8952,145.02,144.94,8.57723608]
[1749807043833,5.62223346,145.01,144.94,8.57723608]
[1749807044034,0.0529231,144.99,144.97,0.05220957]
[1749807044428,6.9469231,144.99,144.97,0.05220957]
[1749807044731,0.0529231,144.99,144.97,0.05220957]
[1749807045730,6.8942,144.98,144.97,0.05220957]
[1749807046932,8.63015918,144.99,144.93,37.54]
[1749807047531,6.896,144.95,144.93,37.54]